[Event "Late-Titled-Tuesday-Blitz-September-26-2023"]
[Site "Chess.com"]
[Date "2023.09.26"]
[Round "2"]
[White "MMSANCHEZ"]
[Black "Bodhanas"]
[Result "1-0"]
[WhiteElo "2665"]
[BlackElo "2075"]
[TimeControl "180+1"]
[EndTime "14:17:36 PDT"]
[Termination "MMSANCHEZ won by resignation"]

1. d4 {[%clk 0:03:00.9]} 1... d6 {[%clk 0:02:58.5]} 2. e4 {[%clk 0:03:00.5]}
2... b6 {[%clk 0:02:51.6]} 3. Nc3 {[%clk 0:02:56.3]} 3... Bb7 {[%clk 0:02:51.1]}
4. Nf3 {[%clk 0:02:56.6]} 4... Nd7 {[%clk 0:02:50.7]} 5. a4 {[%clk 0:02:56]}
5... e6 {[%clk 0:02:43.5]} 6. a5 {[%clk 0:02:55.6]} 6... a6 {[%clk 0:02:39.9]}
7. axb6 {[%clk 0:02:55.3]} 7... cxb6 {[%clk 0:02:39.5]} 8. Bd3 {[%clk
0:02:54.5]} 8... Ngf6 {[%clk 0:02:36.9]} 9. O-O {[%clk 0:02:54.2]} 9... Be7
{[%clk 0:02:36]} 10. h3 {[%clk 0:02:53.9]} 10... O-O {[%clk 0:02:35.1]} 11. Bf4
{[%clk 0:02:53.5]} 11... d5 {[%clk 0:02:26.8]} 12. exd5 {[%clk 0:02:48.2]} 12...
Nxd5 {[%clk 0:02:21.4]} 13. Nxd5 {[%clk 0:02:48.4]} 13... exd5 {[%clk 0:02:14]}
14. Re1 {[%clk 0:02:46.6]} 14... Nf6 {[%clk 0:02:12.2]} 15. Qe2 {[%clk
0:02:42.6]} 15... Bd6 {[%clk 0:02:07.1]} 16. Bxd6 {[%clk 0:02:40.3]} 16... Qxd6
{[%clk 0:02:06.7]} 17. Qe7 {[%clk 0:02:39.2]} 17... Qxe7 {[%clk 0:01:51.8]} 18.
Rxe7 {[%clk 0:02:40.1]} 18... Rfb8 {[%clk 0:01:50.7]} 19. Ne5 {[%clk 0:02:39.4]}
19... a5 {[%clk 0:01:44]} 20. Rxf7 {[%clk 0:02:29.5]} 20... Ba6 {[%clk
0:01:38.9]} 21. Bf5 {[%clk 0:02:28.6]} 21... Bc8 {[%clk 0:01:29.8]} 22. Bxc8
{[%clk 0:02:16]} 22... Rxc8 {[%clk 0:01:28.4]} 23. c3 {[%clk 0:02:16.2]} 23...
Rab8 {[%clk 0:01:15.2]} 24. f3 {[%clk 0:02:10.3]} 24... Re8 {[%clk 0:01:12.6]}
25. Rc7 {[%clk 0:02:08.4]} 25... Kf8 {[%clk 0:01:05.8]} 26. Kf2 {[%clk 0:02:02]}
26... Rbc8 {[%clk 0:01:01.3]} 27. Rb7 {[%clk 0:02:00.9]} 27... Rb8 {[%clk
0:01:01.1]} 28. Rxb8 {[%clk 0:01:54.9]} 28... Rxb8 {[%clk 0:01:00.4]} 29. b4
{[%clk 0:01:53.8]} 29... Rc8 {[%clk 0:00:53.9]} 30. bxa5 {[%clk 0:01:53.5]}
30... bxa5 {[%clk 0:00:53.4]} 31. Rxa5 {[%clk 0:01:45.3]} 31... Rxc3 {[%clk
0:00:51.2]} 32. g4 {[%clk 0:01:45.2]} 32... h6 {[%clk 0:00:45.8]} 33. h4 {[%clk
0:01:44.1]} 33... Rc2+ {[%clk 0:00:42.7]} 34. Kg3 {[%clk 0:01:43.1]} 34... g5
{[%clk 0:00:36.6]} 35. Ra8+ {[%clk 0:01:39.1]} 35... Ke7 {[%clk 0:00:35.5]} 36.
Ra7+ {[%clk 0:01:38.5]} 36... Ke6 {[%clk 0:00:34.8]} 37. hxg5 {[%clk 0:01:26.3]}
37... hxg5 {[%clk 0:00:34]} 38. Nf7 {[%clk 0:01:25.5]} 38... Rc4 {[%clk
0:00:27.6]} 39. Nxg5+ {[%clk 0:01:24]} 39... Kd6 {[%clk 0:00:27.1]} 40. Ra6+
{[%clk 0:01:23.8]} 40... Ke7 {[%clk 0:00:26.8]} 41. Re6+ {[%clk 0:01:23.7]}
41... Kd7 {[%clk 0:00:24.5]} 42. Rxf6 {[%clk 0:01:23.9]} 42... Rxd4 {[%clk
0:00:25.1]} 43. Nh3 {[%clk 0:01:19.1]} 43... Rd1 {[%clk 0:00:23.8]} 44. g5
{[%clk 0:01:18.1]} 44... Ke7 {[%clk 0:00:19.6]} 45. Rf4 {[%clk 0:01:17.4]} 45...
d4 {[%clk 0:00:18.7]} 46. g6 {[%clk 0:01:17.1]} 46... Ra1 {[%clk 0:00:15.2]} 47.
Rxd4 {[%clk 0:01:14.6]} 47... Ra6 {[%clk 0:00:14.7]} 48. Rg4 {[%clk 0:01:14.4]}
48... Ra8 {[%clk 0:00:14.2]} 49. g7 {[%clk 0:01:14.1]} 49... Rg8 {[%clk
0:00:14.7]} 50. Nf4 {[%clk 0:01:14]} 50... Kf6 {[%clk 0:00:14.5]} 51. Nh5+
{[%clk 0:01:12.7]} 51... Kf7 {[%clk 0:00:14.4]} 52. f4 {[%clk 0:01:11]} 52...
Re8 {[%clk 0:00:13.6]} 53. g8=Q+ {[%clk 0:01:08.8]} 53... Rxg8 {[%clk
0:00:13.3]} 54. Rxg8 {[%clk 0:01:09.5]} 54... Kxg8 {[%clk 0:00:13.9]} 55. Kg4
{[%clk 0:01:09.7]} 55... Kf7 {[%clk 0:00:14.1]} 56. Kf5 {[%clk 0:01:09.8]} 56...
Kf8 {[%clk 0:00:14.7]} 57. Kg6 {[%clk 0:01:09.6]} 57... Ke7 {[%clk 0:00:14.9]}
58. f5 {[%clk 0:01:09.7]} 58... Ke8 {[%clk 0:00:15.6]} 59. f6 {[%clk 0:01:08.9]}
59... Kf8 {[%clk 0:00:16.2]} 60. f7 {[%clk 0:01:08.7]} 60... Ke7 {[%clk
0:00:16.3]} 61. Kg7 {[%clk 0:01:08.6]} 1-0

[Event "Late-Titled-Tuesday-Blitz-September-26-2023"]
[Site "Chess.com"]
[Date "2023.09.26"]
[Round "2"]
[White "Gameking51"]
[Black "ChristopherYoo"]
[Result "0-1"]
[WhiteElo "2614"]
[BlackElo "3007"]
[TimeControl "180+1"]
[EndTime "14:17:40 PDT"]
[Termination "ChristopherYoo won on time"]

1. e4 {[%clk 0:02:40.9]} 1... d6 {[%clk 0:02:51.3]} 2. d4 {[%clk 0:02:40]} 2...
Nf6 {[%clk 0:02:51.3]} 3. Nc3 {[%clk 0:02:40.4]} 3... Nc6 {[%clk 0:02:45.3]} 4.
d5 {[%clk 0:02:33.6]} 4... Nb8 {[%clk 0:02:42.7]} 5. f4 {[%clk 0:02:11.9]} 5...
c6 {[%clk 0:02:33.6]} 6. Nf3 {[%clk 0:02:04.7]} 6... g6 {[%clk 0:02:14.3]} 7.
Be2 {[%clk 0:01:56.1]} 7... Bg7 {[%clk 0:02:13.3]} 8. O-O {[%clk 0:01:56.1]}
8... cxd5 {[%clk 0:02:10.2]} 9. exd5 {[%clk 0:01:55.9]} 9... O-O {[%clk
0:02:09.7]} 10. Kh1 {[%clk 0:01:55.4]} 10... Na6 {[%clk 0:01:41.8]} 11. Be3
{[%clk 0:01:51.6]} 11... Nc5 {[%clk 0:01:39.6]} 12. Bd4 {[%clk 0:01:25.6]} 12...
b6 {[%clk 0:01:27.8]} 13. b4 {[%clk 0:01:24.4]} 13... Ncd7 {[%clk 0:01:23.5]}
14. Na4 {[%clk 0:01:01.1]} 14... Bb7 {[%clk 0:01:14.8]} 15. c4 {[%clk
0:01:00.7]} 15... b5 {[%clk 0:01:15.3]} 16. cxb5 {[%clk 0:01:01.1]} 16... Nxd5
{[%clk 0:01:12.1]} 17. Bxg7 {[%clk 0:01:00.2]} 17... Kxg7 {[%clk 0:01:13]} 18.
Qd4+ {[%clk 0:00:51]} 18... N7f6 {[%clk 0:01:04.8]} 19. Ng5 {[%clk 0:00:29.5]}
19... h6 {[%clk 0:00:50.9]} 20. Ne4 {[%clk 0:00:29.5]} 20... e5 {[%clk
0:00:49.1]} 21. fxe5 {[%clk 0:00:28.1]} 21... dxe5 {[%clk 0:00:50]} 22. Qd3
{[%clk 0:00:15.1]} 22... Nf4 {[%clk 0:00:48.2]} 23. Qxd8 {[%clk 0:00:14.4]}
23... Raxd8 {[%clk 0:00:47.1]} 24. Nxf6 {[%clk 0:00:10.4]} 24... Bxg2+ {[%clk
0:00:47.1]} 25. Kg1 {[%clk 0:00:10.6]} 25... Bxf1 {[%clk 0:00:47.8]} 26. Bxf1
{[%clk 0:00:08.3]} 26... Kxf6 {[%clk 0:00:47.8]} 27. Nc5 {[%clk 0:00:08.2]}
27... Rd4 {[%clk 0:00:48.4]} 28. a3 {[%clk 0:00:07.6]} 28... Rfd8 {[%clk
0:00:48.2]} 29. Re1 {[%clk 0:00:07.2]} 29... Kf5 {[%clk 0:00:35.5]} 30. a4
{[%clk 0:00:04.9]} 30... Rxb4 {[%clk 0:00:29.8]} 31. a5 {[%clk 0:00:05.2]} 31...
Rd5 {[%clk 0:00:28.8]} 32. Rc1 {[%clk 0:00:04.8]} 32... e4 {[%clk 0:00:20.5]}
33. Na6 {[%clk 0:00:04.7]} 33... Rbxb5 {[%clk 0:00:19.3]} 34. Nc7 {[%clk
0:00:03.3]} 34... Rbc5 {[%clk 0:00:14.3]} 0-1

[Event "Late-Titled-Tuesday-Blitz-September-26-2023"]
[Site "Chess.com"]
[Date "2023.09.26"]
[Round "2"]
[White "PawnEatingZombie"]
[Black "PapaieDudu"]
[Result "1-0"]
[WhiteElo "2147"]
[BlackElo "2421"]
[TimeControl "180+1"]
[EndTime "14:17:40 PDT"]
[Termination "PawnEatingZombie won by checkmate"]

1. e4 {[%clk 0:03:00.9]} 1... c5 {[%clk 0:02:59.8]} 2. c3 {[%clk 0:03:00.4]}
2... Nf6 {[%clk 0:02:59]} 3. e5 {[%clk 0:03:00.7]} 3... Nd5 {[%clk 0:02:59.3]}
4. Nf3 {[%clk 0:03:01.1]} 4... Nc6 {[%clk 0:02:58.8]} 5. Bc4 {[%clk 0:02:58.2]}
5... e6 {[%clk 0:02:54.3]} 6. d4 {[%clk 0:02:56.9]} 6... d6 {[%clk 0:02:47.5]}
7. O-O {[%clk 0:02:53.6]} 7... Be7 {[%clk 0:02:46.2]} 8. Nbd2 {[%clk 0:02:19.6]}
8... cxd4 {[%clk 0:02:44.7]} 9. cxd4 {[%clk 0:02:19]} 9... O-O {[%clk
0:02:27.1]} 10. Ne4 {[%clk 0:02:17.8]} 10... h6 {[%clk 0:01:58.5]} 11. a3 {[%clk
0:02:11.1]} 11... dxe5 {[%clk 0:01:53.6]} 12. dxe5 {[%clk 0:02:09.9]} 12... a6
{[%clk 0:01:47]} 13. Qe2 {[%clk 0:01:48.9]} 13... b5 {[%clk 0:01:24.2]} 14. Ba2
{[%clk 0:01:48.4]} 14... Bb7 {[%clk 0:01:20.1]} 15. Rd1 {[%clk 0:01:21.6]} 15...
b4 {[%clk 0:01:16.9]} 16. Be3 {[%clk 0:01:10]} 16... bxa3 {[%clk 0:00:53.8]} 17.
bxa3 {[%clk 0:01:08.8]} 17... Qc7 {[%clk 0:00:54.5]} 18. Bxd5 {[%clk 0:00:30.9]}
18... exd5 {[%clk 0:00:54.2]} 19. Nc5 {[%clk 0:00:20.1]} 19... Bc8 {[%clk
0:00:46.4]} 20. Rac1 {[%clk 0:00:13.2]} 20... Rd8 {[%clk 0:00:43.4]} 21. e6
{[%clk 0:00:10.9]} 21... fxe6 {[%clk 0:00:40.8]} 22. Nd4 {[%clk 0:00:09.6]}
22... Nxd4 {[%clk 0:00:40.4]} 23. Bxd4 {[%clk 0:00:09.8]} 23... Bxc5 {[%clk
0:00:20.9]} 24. Rxc5 {[%clk 0:00:08.4]} 24... Qf7 {[%clk 0:00:21.1]} 25. Rdc1
{[%clk 0:00:07.5]} 25... Bd7 {[%clk 0:00:20.9]} 26. Rc7 {[%clk 0:00:07.2]} 26...
Rac8 {[%clk 0:00:21.6]} 27. Qxa6 {[%clk 0:00:04.2]} 27... Bb5 {[%clk 0:00:12.4]}
28. Qb6 {[%clk 0:00:03.9]} 28... Rxc7 {[%clk 0:00:11.5]} 29. Rxc7 {[%clk
0:00:03.9]} 29... Qe8 {[%clk 0:00:11.7]} 30. Rxg7+ {[%clk 0:00:03.9]} 30... Kf8
{[%clk 0:00:11.3]} 31. Qc7 {[%clk 0:00:03.7]} 31... Rc8 {[%clk 0:00:09.5]} 32.
Rg8+ {[%clk 0:00:04]} 32... Kxg8 {[%clk 0:00:10]} 33. Qg7# {[%clk 0:00:04.2]}
1-0

[Event "Late-Titled-Tuesday-Blitz-September-26-2023"]
[Site "Chess.com"]
[Date "2023.09.26"]
[Round "2"]
[White "iturrizaga"]
[Black "RichardLeyvaP"]
[Result "0-1"]
[WhiteElo "2992"]
[BlackElo "2634"]
[TimeControl "180+1"]
[EndTime "14:17:42 PDT"]
[Termination "RichardLeyvaP won on time"]

1. c4 {[%clk 0:03:00.9]} 1... Nf6 {[%clk 0:02:59.6]} 2. g3 {[%clk 0:03:01.5]}
2... e6 {[%clk 0:02:59.4]} 3. Bg2 {[%clk 0:03:02.2]} 3... d5 {[%clk 0:02:59.8]}
4. Nf3 {[%clk 0:03:03.1]} 4... Be7 {[%clk 0:02:59.7]} 5. O-O {[%clk 0:03:03.7]}
5... O-O {[%clk 0:02:59.9]} 6. d4 {[%clk 0:03:04.1]} 6... dxc4 {[%clk
0:02:59.6]} 7. Qc2 {[%clk 0:03:04.4]} 7... a6 {[%clk 0:03:00]} 8. a4 {[%clk
0:03:04.3]} 8... Ra7 {[%clk 0:02:59.6]} 9. Rd1 {[%clk 0:02:59.3]} 9... b6 {[%clk
0:02:56.9]} 10. Nbd2 {[%clk 0:02:57.9]} 10... Bb7 {[%clk 0:02:56.6]} 11. Nxc4
{[%clk 0:02:58.3]} 11... Nbd7 {[%clk 0:02:54.7]} 12. Nfe5 {[%clk 0:02:48.7]}
12... Bxg2 {[%clk 0:02:53.4]} 13. Kxg2 {[%clk 0:02:49.6]} 13... Qa8+ {[%clk
0:02:52.8]} 14. f3 {[%clk 0:02:50.3]} 14... Rc8 {[%clk 0:02:44.2]} 15. Bg5
{[%clk 0:02:46.8]} 15... h6 {[%clk 0:02:42.3]} 16. Nxd7 {[%clk 0:02:32.1]} 16...
hxg5 {[%clk 0:02:38.1]} 17. Nde5 {[%clk 0:02:23.8]} 17... Qb7 {[%clk 0:02:29.9]}
18. Nxf7 {[%clk 0:00:22.6]} 18... Kxf7 {[%clk 0:02:24.5]} 19. Ne5+ {[%clk
0:00:23]} 19... Kg8 {[%clk 0:02:24.5]} 20. Nc6 {[%clk 0:00:23.1]} 20... Bf8
{[%clk 0:02:15.1]} 21. e4 {[%clk 0:00:16]} 21... Raa8 {[%clk 0:02:05.9]} 22.
Rac1 {[%clk 0:00:15.9]} 22... Re8 {[%clk 0:02:04.6]} 23. h3 {[%clk 0:00:11.7]}
23... a5 {[%clk 0:01:57.6]} 24. Qb3 {[%clk 0:00:11.6]} 24... Kh7 {[%clk
0:01:43.9]} 25. Rc2 {[%clk 0:00:11.5]} 25... Kg6 {[%clk 0:01:37.6]} 26. Rdc1
{[%clk 0:00:10.7]} 26... Rac8 {[%clk 0:01:37.6]} 27. Qd3 {[%clk 0:00:09.1]}
27... Kf7 {[%clk 0:01:33.8]} 28. Qe3 {[%clk 0:00:06]} 28... b5 {[%clk
0:01:25.4]} 29. Qxg5 {[%clk 0:00:04]} 29... bxa4 {[%clk 0:01:24.9]} 30. Ne5+
{[%clk 0:00:04.1]} 30... Kg8 {[%clk 0:01:24.8]} 31. Qg6 {[%clk 0:00:05]} 31...
c5 {[%clk 0:01:23.3]} 32. dxc5 {[%clk 0:00:04]} 32... Bxc5 {[%clk 0:01:00.2]}
33. Rxc5 {[%clk 0:00:02.5]} 33... Rxc5 {[%clk 0:00:59.4]} 34. Rxc5 {[%clk
0:00:02.3]} 34... Qxb2+ {[%clk 0:00:59.4]} 35. Kf1 {[%clk 0:00:02.2]} 35... Qa1+
{[%clk 0:00:56.1]} 36. Ke2 {[%clk 0:00:02.2]} 36... Qb2+ {[%clk 0:00:56]} 37.
Ke3 {[%clk 0:00:01.8]} 37... Qb6 {[%clk 0:00:43.1]} 38. Nd3 {[%clk 0:00:01.4]}
38... Rc8 {[%clk 0:00:39.6]} 39. Qg5 {[%clk 0:00:01.3]} 39... a3 {[%clk
0:00:36.7]} 40. Qe5 {[%clk 0:00:01.2]} 40... a2 {[%clk 0:00:35.5]} 0-1

[Event "Late-Titled-Tuesday-Blitz-September-26-2023"]
[Site "Chess.com"]
[Date "2023.09.26"]
[Round "2"]
[White "as9killer2"]
[Black "Harsha_Bharathakoti"]
[Result "0-1"]
[WhiteElo "2584"]
[BlackElo "2903"]
[TimeControl "180+1"]
[EndTime "14:17:42 PDT"]
[Termination "Harsha_Bharathakoti won by resignation"]

1. c4 {[%clk 0:03:00.9]} 1... e6 {[%clk 0:02:57.8]} 2. Nc3 {[%clk 0:03:00.1]}
2... d5 {[%clk 0:02:57]} 3. e3 {[%clk 0:02:59.9]} 3... Nf6 {[%clk 0:02:56.7]} 4.
Nf3 {[%clk 0:02:56.7]} 4... b6 {[%clk 0:02:56.8]} 5. cxd5 {[%clk 0:02:48.1]}
5... exd5 {[%clk 0:02:57.7]} 6. d4 {[%clk 0:02:46.4]} 6... Bd6 {[%clk
0:02:54.3]} 7. Bb5+ {[%clk 0:02:45.4]} 7... c6 {[%clk 0:02:53.1]} 8. Bd3 {[%clk
0:02:45.7]} 8... O-O {[%clk 0:02:53.2]} 9. O-O {[%clk 0:02:45]} 9... Re8 {[%clk
0:02:51.1]} 10. Re1 {[%clk 0:02:39.9]} 10... Ne4 {[%clk 0:02:40.8]} 11. Bxe4
{[%clk 0:02:30.3]} 11... dxe4 {[%clk 0:02:40.5]} 12. Nd2 {[%clk 0:02:31]} 12...
Bf5 {[%clk 0:02:28.9]} 13. Nc4 {[%clk 0:02:20.5]} 13... Bc7 {[%clk 0:02:03.9]}
14. d5 {[%clk 0:02:13.9]} 14... Qh4 {[%clk 0:02:03.9]} 15. d6 {[%clk 0:02:06.3]}
15... Bd8 {[%clk 0:02:03.6]} 16. a4 {[%clk 0:01:53.2]} 16... Nd7 {[%clk
0:02:02.2]} 17. b4 {[%clk 0:01:50]} 17... Re6 {[%clk 0:02:00.1]} 18. Ne2 {[%clk
0:01:44.4]} 18... Rh6 {[%clk 0:01:50.4]} 19. h3 {[%clk 0:01:44.4]} 19... Bxh3
{[%clk 0:01:27.1]} 20. gxh3 {[%clk 0:01:42.9]} 20... Qxh3 {[%clk 0:01:28]} 21.
Ng3 {[%clk 0:01:42.7]} 21... Qh2+ {[%clk 0:01:28.4]} 22. Kf1 {[%clk 0:01:42.6]}
22... Rf6 {[%clk 0:01:29.1]} 23. Nxe4 {[%clk 0:01:29.1]} 23... Qh1+ {[%clk
0:01:28]} 24. Ke2 {[%clk 0:01:29.3]} 24... Qxe4 {[%clk 0:01:23.6]} 25. Nd2
{[%clk 0:01:28]} 25... Qg4+ {[%clk 0:01:13.3]} 26. f3 {[%clk 0:01:27.8]} 26...
Qg2+ {[%clk 0:01:10.7]} 27. Kd3 {[%clk 0:01:28.1]} 27... Rxd6+ {[%clk
0:01:08.6]} 28. Kc2 {[%clk 0:01:27]} 28... Bf6 {[%clk 0:01:06.2]} 29. Ra2 {[%clk
0:01:24.4]} 29... Ne5 {[%clk 0:00:45.2]} 30. Rg1 {[%clk 0:01:20.6]} 30... Qh3
{[%clk 0:00:41.5]} 31. Bb2 {[%clk 0:01:10]} 31... Rad8 {[%clk 0:00:37.4]} 32.
Bc3 {[%clk 0:00:44.6]} 32... Nxf3 {[%clk 0:00:37.6]} 33. Ne4 {[%clk 0:00:34.1]}
33... Rxd1 {[%clk 0:00:35.2]} 34. Nxf6+ {[%clk 0:00:34.2]} 34... Kf8 {[%clk
0:00:29.9]} 35. Rxd1 {[%clk 0:00:30]} 35... Rxd1 {[%clk 0:00:29.2]} 36. Kxd1
{[%clk 0:00:28]} 36... gxf6 {[%clk 0:00:25.7]} 37. Rf2 {[%clk 0:00:27.9]} 37...
Ke7 {[%clk 0:00:24.9]} 38. Kc2 {[%clk 0:00:26.7]} 38... Ne5 {[%clk 0:00:24.9]}
39. Re2 {[%clk 0:00:24.9]} 39... Qf3 {[%clk 0:00:24.5]} 40. Kd2 {[%clk
0:00:24.1]} 40... Nc4+ {[%clk 0:00:22.9]} 41. Ke1 {[%clk 0:00:21.8]} 41... Qh1+
{[%clk 0:00:21.7]} 42. Kf2 {[%clk 0:00:22.3]} 42... Nd6 {[%clk 0:00:21.1]} 43.
e4 {[%clk 0:00:19.8]} 43... Nxe4+ {[%clk 0:00:21.4]} 44. Ke3 {[%clk 0:00:20.2]}
44... Nxc3 {[%clk 0:00:21.1]} 0-1

[Event "Late-Titled-Tuesday-Blitz-September-26-2023"]
[Site "Chess.com"]
[Date "2023.09.26"]
[Round "2"]
[White "Botvinnak"]
[Black "RonArtest77"]
[Result "1/2-1/2"]
[WhiteElo "2308"]
[BlackElo "2493"]
[TimeControl "180+1"]
[EndTime "14:17:44 PDT"]
[Termination "Game drawn - insufficient material"]

1. Nf3 {[%clk 0:02:52.5]} 1... d5 {[%clk 0:02:57.7]} 2. b3 {[%clk 0:02:52.8]}
2... e6 {[%clk 0:02:57]} 3. e3 {[%clk 0:02:53.1]} 3... c6 {[%clk 0:02:56.7]} 4.
Bb2 {[%clk 0:02:53.4]} 4... f5 {[%clk 0:02:56]} 5. Be2 {[%clk 0:02:48.5]} 5...
Nf6 {[%clk 0:02:56.2]} 6. O-O {[%clk 0:02:48.5]} 6... Bd6 {[%clk 0:02:55.1]} 7.
c4 {[%clk 0:02:48.8]} 7... O-O {[%clk 0:02:54.9]} 8. Ba3 {[%clk 0:02:48.3]} 8...
Bxa3 {[%clk 0:02:52]} 9. Nxa3 {[%clk 0:02:47.9]} 9... Nbd7 {[%clk 0:02:52.9]}
10. Rc1 {[%clk 0:02:47.2]} 10... Qe8 {[%clk 0:02:51.9]} 11. cxd5 {[%clk
0:02:45.1]} 11... exd5 {[%clk 0:02:51.8]} 12. Nc2 {[%clk 0:02:44.1]} 12... Ne4
{[%clk 0:02:49.4]} 13. Ncd4 {[%clk 0:02:43.4]} 13... Nd6 {[%clk 0:02:40.5]} 14.
b4 {[%clk 0:02:42.1]} 14... a6 {[%clk 0:02:36.7]} 15. a4 {[%clk 0:02:41.9]}
15... g6 {[%clk 0:02:28.2]} 16. Qb3 {[%clk 0:02:41.9]} 16... Qf7 {[%clk
0:01:56.7]} 17. d3 {[%clk 0:02:34.8]} 17... Re8 {[%clk 0:01:51.1]} 18. Rfe1
{[%clk 0:02:34.2]} 18... f4 {[%clk 0:01:45.5]} 19. e4 {[%clk 0:02:27.1]} 19...
dxe4 {[%clk 0:01:40.8]} 20. dxe4 {[%clk 0:02:23.5]} 20... Qxb3 {[%clk 0:01:39]}
21. Nxb3 {[%clk 0:02:23.4]} 21... Kg7 {[%clk 0:01:30.8]} 22. Bd3 {[%clk
0:02:16]} 22... Ne5 {[%clk 0:01:21.5]} 23. Nxe5 {[%clk 0:02:15.6]} 23... Rxe5
{[%clk 0:01:22.4]} 24. Rcd1 {[%clk 0:02:16.2]} 24... Be6 {[%clk 0:01:05.1]} 25.
Nc5 {[%clk 0:02:15.8]} 25... b6 {[%clk 0:00:55.6]} 26. Nxe6+ {[%clk 0:02:10.1]}
26... Rxe6 {[%clk 0:00:55.4]} 27. e5 {[%clk 0:02:10.6]} 27... Nf7 {[%clk
0:00:52.7]} 28. Bc4 {[%clk 0:02:09.8]} 28... Rxe5 {[%clk 0:00:49.4]} 29. Kf1
{[%clk 0:01:49.8]} 29... Rxe1+ {[%clk 0:00:43.4]} 30. Rxe1 {[%clk 0:01:50]}
30... Nd6 {[%clk 0:00:36.9]} 31. Re7+ {[%clk 0:01:46.8]} 31... Kh6 {[%clk
0:00:32.4]} 32. Bd3 {[%clk 0:01:42.4]} 32... b5 {[%clk 0:00:31.5]} 33. a5 {[%clk
0:01:41.3]} 33... Rd8 {[%clk 0:00:29.6]} 34. g3 {[%clk 0:01:39.4]} 34... Nc8
{[%clk 0:00:25.2]} 35. Rc7 {[%clk 0:01:33.4]} 35... Rxd3 {[%clk 0:00:18.5]} 36.
Rxc8 {[%clk 0:01:33.3]} 36... f3 {[%clk 0:00:19.1]} 37. Ke1 {[%clk 0:01:31]}
37... Rc3 {[%clk 0:00:18.6]} 38. Kd2 {[%clk 0:01:28.3]} 38... Rc4 {[%clk
0:00:19]} 39. Ke3 {[%clk 0:01:27.7]} 39... Rc3+ {[%clk 0:00:11.4]} 40. Kf4
{[%clk 0:01:27.3]} 40... g5+ {[%clk 0:00:07]} 41. Kg4 {[%clk 0:01:24.8]} 41...
Kg6 {[%clk 0:00:05]} 42. Rg8+ {[%clk 0:01:24.5]} 42... Kf7 {[%clk 0:00:05.3]}
43. Rc8 {[%clk 0:01:23.9]} 43... h6 {[%clk 0:00:04]} 44. h4 {[%clk 0:01:22.4]}
44... Kg6 {[%clk 0:00:03.9]} 45. Rg8+ {[%clk 0:01:20.3]} 45... Kf6 {[%clk
0:00:04.2]} 46. Rc8 {[%clk 0:01:18.6]} 46... Kg7 {[%clk 0:00:03.5]} 47. hxg5
{[%clk 0:01:18.2]} 47... hxg5 {[%clk 0:00:04.4]} 48. Kxg5 {[%clk 0:01:18.6]}
48... Rc2 {[%clk 0:00:04.6]} 49. Rc7+ {[%clk 0:01:16.6]} 49... Kf8 {[%clk
0:00:03.1]} 50. Kf6 {[%clk 0:01:16.7]} 50... Ke8 {[%clk 0:00:03.6]} 51. g4
{[%clk 0:01:16.9]} 51... Rxf2 {[%clk 0:00:03.5]} 52. Rxc6 {[%clk 0:01:17]} 52...
Kd7 {[%clk 0:00:03.6]} 53. Rxa6 {[%clk 0:01:16.6]} 53... Rg2 {[%clk 0:00:04]}
54. Ra7+ {[%clk 0:01:15.9]} 54... Kc6 {[%clk 0:00:04.3]} 55. Ra6+ {[%clk
0:01:16.1]} 55... Kb7 {[%clk 0:00:04.7]} 56. Rb6+ {[%clk 0:01:14.5]} 56... Ka7
{[%clk 0:00:05.3]} 57. Rxb5 {[%clk 0:01:15.1]} 57... Rxg4 {[%clk 0:00:04.1]} 58.
Rf5 {[%clk 0:01:13.8]} 58... Rxb4 {[%clk 0:00:02.8]} 59. Rxf3 {[%clk 0:01:14.2]}
59... Ka6 {[%clk 0:00:03.7]} 60. Rf5 {[%clk 0:01:14.2]} 60... Rb5 {[%clk
0:00:03.7]} 61. Rxb5 {[%clk 0:01:14.4]} 61... Kxb5 {[%clk 0:00:04.6]} 62. a6
{[%clk 0:01:14.9]} 62... Kxa6 {[%clk 0:00:05.2]} 1/2-1/2

[Event "Late-Titled-Tuesday-Blitz-September-26-2023"]
[Site "Chess.com"]
[Date "2023.09.26"]
[Round "2"]
[White "The_Princess_Moon"]
[Black "brunoo2003"]
[Result "1/2-1/2"]
[WhiteElo "2274"]
[BlackElo "2468"]
[TimeControl "180+1"]
[EndTime "14:17:46 PDT"]
[Termination "Game drawn by repetition"]

1. e4 {[%clk 0:03:00.9]} 1... e6 {[%clk 0:02:52.1]} 2. d4 {[%clk 0:02:55.6]}
2... d5 {[%clk 0:02:52.5]} 3. e5 {[%clk 0:02:54.4]} 3... c5 {[%clk 0:02:51.7]}
4. c3 {[%clk 0:02:54.8]} 4... Nc6 {[%clk 0:02:51.6]} 5. Be2 {[%clk 0:02:55.3]}
5... Qb6 {[%clk 0:02:47.5]} 6. Nf3 {[%clk 0:02:54]} 6... Bd7 {[%clk 0:02:47.3]}
7. O-O {[%clk 0:02:51.2]} 7... cxd4 {[%clk 0:02:42.4]} 8. cxd4 {[%clk 0:02:49]}
8... Nge7 {[%clk 0:02:42.6]} 9. Nc3 {[%clk 0:02:41.7]} 9... Nf5 {[%clk
0:02:41.3]} 10. Na4 {[%clk 0:02:41.3]} 10... Qd8 {[%clk 0:02:37.7]} 11. Bg5
{[%clk 0:02:33.9]} 11... Qa5 {[%clk 0:02:23.6]} 12. Bd2 {[%clk 0:02:26.7]} 12...
Bb4 {[%clk 0:02:22.3]} 13. Bxb4 {[%clk 0:02:23.1]} 13... Qxb4 {[%clk 0:02:23.2]}
14. a3 {[%clk 0:02:20.7]} 14... Qe7 {[%clk 0:02:12]} 15. Rc1 {[%clk 0:01:59.9]}
15... g5 {[%clk 0:01:48.1]} 16. Bb5 {[%clk 0:01:22.2]} 16... g4 {[%clk
0:01:46.9]} 17. Bxc6 {[%clk 0:01:20.6]} 17... Bxc6 {[%clk 0:01:44.7]} 18. Ne1
{[%clk 0:01:10.6]} 18... h5 {[%clk 0:01:40.6]} 19. Rxc6 {[%clk 0:00:46.6]} 19...
bxc6 {[%clk 0:01:37.4]} 20. Nc5 {[%clk 0:00:44.6]} 20... Kf8 {[%clk 0:01:24.3]}
21. Nc2 {[%clk 0:00:43.4]} 21... a5 {[%clk 0:01:19.7]} 22. Ne3 {[%clk
0:00:41.3]} 22... Nxe3 {[%clk 0:01:10.6]} 23. fxe3 {[%clk 0:00:42.2]} 23... Kg7
{[%clk 0:01:10.8]} 24. Qd2 {[%clk 0:00:35.5]} 24... Qg5 {[%clk 0:01:03.3]} 25.
Qf2 {[%clk 0:00:34.5]} 25... Qg6 {[%clk 0:00:59.2]} 26. Nd7 {[%clk 0:00:31]}
26... Ra7 {[%clk 0:00:52.3]} 27. Nf6 {[%clk 0:00:29.8]} 27... Rb7 {[%clk
0:00:49.5]} 28. Rc1 {[%clk 0:00:28.2]} 28... Rhb8 {[%clk 0:00:48.1]} 29. Qh4
{[%clk 0:00:20.7]} 29... Kh6 {[%clk 0:00:20.9]} 30. h3 {[%clk 0:00:18.6]} 30...
gxh3 {[%clk 0:00:19.9]} 31. Qxh3 {[%clk 0:00:17.4]} 31... Rxb2 {[%clk
0:00:18.4]} 32. Rf1 {[%clk 0:00:17.6]} 32... Rb1 {[%clk 0:00:17.4]} 33. Rxb1
{[%clk 0:00:16.8]} 33... Rxb1+ {[%clk 0:00:18.3]} 34. Kh2 {[%clk 0:00:17.5]}
34... Qf5 {[%clk 0:00:16.5]} 35. Qg3 {[%clk 0:00:15.8]} 35... Qg5 {[%clk
0:00:16.4]} 36. Ng8+ {[%clk 0:00:15.3]} 36... Kg6 {[%clk 0:00:16.6]} 37. Ne7+
{[%clk 0:00:15.1]} 37... Kh6 {[%clk 0:00:14.7]} 38. Ng8+ {[%clk 0:00:15.2]}
38... Kg6 {[%clk 0:00:11.6]} 39. Ne7+ {[%clk 0:00:15]} 39... Kh6 {[%clk
0:00:10.8]} 40. Ng8+ {[%clk 0:00:14.7]} 1/2-1/2